[Event "*** Titled Tuesday Blitz"]
[Site "Chess.com"]
[Date "2020.03.03"]
[Round "4"]
[White "chessdjw"]
[Black "rubhani"]
[Result "1/2-1/2"]
[WhiteElo "2625"]
[BlackElo "2447"]
[TimeControl "180+1"]
[EndTime "13:41:49 PST"]
[Termination "Game drawn - insufficient material"]

1. d4 {[%clk 0:03:00.9]} 1... Nf6 {[%clk 0:02:58.8]} 2. c4 {[%clk 0:03:01.5]}
2... e6 {[%clk 0:02:58.1]} 3. g3 {[%clk 0:03:02.1]} 3... d5 {[%clk 0:02:54.5]}
4. Bg2 {[%clk 0:03:02.5]} 4... c6 {[%clk 0:02:54.9]} 5. Nf3 {[%clk 0:03:01.9]}
5... Nbd7 {[%clk 0:02:54.4]} 6. Nbd2 {[%clk 0:02:59.5]} 6... Be7 {[%clk
0:02:54.2]} 7. O-O {[%clk 0:03:00]} 7... O-O {[%clk 0:02:54.2]} 8. Qc2 {[%clk
0:03:00.7]} 8... b6 {[%clk 0:02:50.3]} 9. e4 {[%clk 0:03:00.6]} 9... Ba6 {[%clk
0:02:43]} 10. b3 {[%clk 0:02:56.1]} 10... Rc8 {[%clk 0:02:30.6]} 11. Bb2 {[%clk
0:02:56.3]} 11... c5 {[%clk 0:02:26.8]} 12. exd5 {[%clk 0:02:56]} 12... exd5
{[%clk 0:02:26.6]} 13. Qf5 {[%clk 0:02:56.5]} 13... dxc4 {[%clk 0:01:14.2]} 14.
Nxc4 {[%clk 0:02:56.2]} 14... Bxc4 {[%clk 0:01:07.9]} 15. bxc4 {[%clk
0:02:55.8]} 15... cxd4 {[%clk 0:01:07.8]} 16. Nxd4 {[%clk 0:02:53.9]} 16... Rc5
{[%clk 0:01:07.9]} 17. Qh3 {[%clk 0:02:39.1]} 17... Qc8 {[%clk 0:01:03.4]} 18.
Nf5 {[%clk 0:02:30.5]} 18... Re8 {[%clk 0:00:43.5]} 19. Nxe7+ {[%clk 0:02:22.3]}
19... Rxe7 {[%clk 0:00:44.4]} 20. Ba3 {[%clk 0:01:27.8]} 20... Rh5 {[%clk
0:00:44.1]} 21. Qxh5 {[%clk 0:01:20.5]} 21... Nxh5 {[%clk 0:00:43.8]} 22. Bxe7
{[%clk 0:01:21.1]} 22... Nhf6 {[%clk 0:00:40.1]} 23. Rfe1 {[%clk 0:01:18.3]}
23... h6 {[%clk 0:00:39.8]} 24. Rac1 {[%clk 0:01:15.4]} 24... Qa6 {[%clk
0:00:38.8]} 25. Rc2 {[%clk 0:01:08.6]} 25... Qa4 {[%clk 0:00:37.5]} 26. Ree2
{[%clk 0:01:03.9]} 26... Qa5 {[%clk 0:00:24.8]} 27. h3 {[%clk 0:01:01.9]} 27...
Qf5 {[%clk 0:00:23]} 28. Rcd2 {[%clk 0:00:50.6]} 28... Ne5 {[%clk 0:00:19.5]}
29. Rd8+ {[%clk 0:00:46.9]} 29... Kh7 {[%clk 0:00:19.7]} 30. Bxf6 {[%clk
0:00:12.3]} 30... Qxf6 {[%clk 0:00:19.8]} 31. Be4+ {[%clk 0:00:10.9]} 31... g6
{[%clk 0:00:20.1]} 32. Rc8 {[%clk 0:00:09]} 32... Nf3+ {[%clk 0:00:19]} 33. Bxf3
{[%clk 0:00:08.4]} 33... Qxf3 {[%clk 0:00:18.7]} 34. Re7 {[%clk 0:00:07.8]}
34... Kg7 {[%clk 0:00:17.4]} 35. Rxa7 {[%clk 0:00:06.6]} 35... Qd1+ {[%clk
0:00:16.9]} 36. Kg2 {[%clk 0:00:06.7]} 36... Qd3 {[%clk 0:00:17.2]} 37. Rcc7
{[%clk 0:00:06.9]} 37... Qe4+ {[%clk 0:00:17.4]} 38. Kh2 {[%clk 0:00:07.5]}
38... Kg8 {[%clk 0:00:15.6]} 39. Rxf7 {[%clk 0:00:07.9]} 39... Qxc4 {[%clk
0:00:15.9]} 40. Rg7+ {[%clk 0:00:07.8]} 40... Kf8 {[%clk 0:00:15.8]} 41. Raf7+
{[%clk 0:00:07.8]} 41... Ke8 {[%clk 0:00:15.8]} 42. Rc7 {[%clk 0:00:08.3]} 42...
Qe6 {[%clk 0:00:15.4]} 43. Rge7+ {[%clk 0:00:07.6]} 43... Qxe7 {[%clk
0:00:15.3]} 44. Rxe7+ {[%clk 0:00:08.5]} 44... Kxe7 {[%clk 0:00:16.2]} 45. Kg2
{[%clk 0:00:09.4]} 45... Kf6 {[%clk 0:00:17.1]} 46. Kf3 {[%clk 0:00:09.9]} 46...
Kf5 {[%clk 0:00:18]} 47. g4+ {[%clk 0:00:09.8]} 47... Ke5 {[%clk 0:00:17.8]} 48.
Ke3 {[%clk 0:00:09.3]} 48... g5 {[%clk 0:00:18.1]} 49. f3 {[%clk 0:00:09.6]}
49... b5 {[%clk 0:00:16.9]} 50. a3 {[%clk 0:00:09.8]} 50... Kd5 {[%clk
0:00:17.2]} 51. f4 {[%clk 0:00:10.3]} 51... gxf4+ {[%clk 0:00:17.1]} 52. Kxf4
{[%clk 0:00:11.2]} 52... Kc4 {[%clk 0:00:18]} 53. g5 {[%clk 0:00:10.5]} 53...
hxg5+ {[%clk 0:00:17.8]} 54. Kxg5 {[%clk 0:00:11.4]} 54... Kb3 {[%clk
0:00:18.4]} 55. h4 {[%clk 0:00:12.3]} 55... Kxa3 {[%clk 0:00:19.1]} 56. h5
{[%clk 0:00:13.2]} 56... b4 {[%clk 0:00:19.9]} 57. h6 {[%clk 0:00:13.8]} 57...
b3 {[%clk 0:00:20.8]} 58. h7 {[%clk 0:00:14.3]} 58... b2 {[%clk 0:00:21.7]} 59.
h8=Q {[%clk 0:00:14.9]} 59... b1=Q {[%clk 0:00:22.6]} 60. Qa8+ {[%clk
0:00:15.4]} 60... Kb2 {[%clk 0:00:22.8]} 61. Qb7+ {[%clk 0:00:15.8]} 61... Ka1
{[%clk 0:00:23.2]} 62. Qa6+ {[%clk 0:00:15.3]} 62... Kb2 {[%clk 0:00:23.3]} 63.
Qb5+ {[%clk 0:00:15.1]} 63... Kc1 {[%clk 0:00:23.3]} 64. Qf1+ {[%clk 0:00:14.5]}
64... Kb2 {[%clk 0:00:23.1]} 65. Qb5+ {[%clk 0:00:14.7]} 65... Kc1 {[%clk
0:00:23.4]} 66. Qc4+ {[%clk 0:00:15.1]} 66... Qc2 {[%clk 0:00:23.5]} 67. Qxc2+
{[%clk 0:00:15.2]} 67... Kxc2 {[%clk 0:00:23.7]} 1/2-1/2

[Event "*** Titled Tuesday Blitz"]
[Site "Chess.com"]
[Date "2020.03.03"]
[Round "4"]
[White "NuidisVulko"]
[Black "czasnaszachy"]
[Result "0-1"]
[WhiteElo "2400"]
[BlackElo "2278"]
[TimeControl "180+1"]
[EndTime "13:41:50 PST"]
[Termination "czasnaszachy won on time"]

1. e4 {[%clk 0:03:00.9]} 1... c5 {[%clk 0:02:59.2]} 2. Nf3 {[%clk 0:03:00.1]}
2... d6 {[%clk 0:02:59.3]} 3. c3 {[%clk 0:03:00.2]} 3... Nf6 {[%clk 0:02:58.4]}
4. h3 {[%clk 0:03:00.5]} 4... g6 {[%clk 0:02:57.3]} 5. Bd3 {[%clk 0:02:59.6]}
5... Bg7 {[%clk 0:02:57.2]} 6. Bc2 {[%clk 0:03:00.2]} 6... O-O {[%clk
0:02:57.3]} 7. O-O {[%clk 0:03:00.7]} 7... Nc6 {[%clk 0:02:44.3]} 8. d4 {[%clk
0:02:59.2]} 8... cxd4 {[%clk 0:02:44.4]} 9. cxd4 {[%clk 0:02:59.5]} 9... d5
{[%clk 0:02:44.3]} 10. e5 {[%clk 0:02:58.8]} 10... Ne4 {[%clk 0:02:44]} 11. Nc3
{[%clk 0:02:58.9]} 11... Nxc3 {[%clk 0:02:43.3]} 12. bxc3 {[%clk 0:02:58.5]}
12... f6 {[%clk 0:02:32.1]} 13. exf6 {[%clk 0:02:51]} 13... Rxf6 {[%clk
0:02:20]} 14. Re1 {[%clk 0:02:49]} 14... Bf5 {[%clk 0:02:10.6]} 15. Bg5 {[%clk
0:02:45.3]} 15... Bxc2 {[%clk 0:02:06.7]} 16. Qxc2 {[%clk 0:02:44.7]} 16... Rxf3
{[%clk 0:02:04.7]} 17. gxf3 {[%clk 0:02:43.7]} 17... Qd7 {[%clk 0:02:02.9]} 18.
Kg2 {[%clk 0:02:42.7]} 18... Rf8 {[%clk 0:02:02]} 19. Re3 {[%clk 0:02:37.9]}
19... Rf5 {[%clk 0:01:44.5]} 20. f4 {[%clk 0:02:08]} 20... Bf6 {[%clk
0:01:21.9]} 21. Rg3 {[%clk 0:01:52]} 21... Qe6 {[%clk 0:00:48.9]} 22. Bxf6
{[%clk 0:01:28.1]} 22... Qxf6 {[%clk 0:00:46.1]} 23. Re1 {[%clk 0:01:17.6]}
23... Rxf4 {[%clk 0:00:42.4]} 24. Qe2 {[%clk 0:01:03.5]} 24... Kf7 {[%clk
0:00:37.9]} 25. Qe3 {[%clk 0:00:52.8]} 25... e6 {[%clk 0:00:33.2]} 26. Re2
{[%clk 0:00:50.2]} 26... g5 {[%clk 0:00:27.6]} 27. Qd3 {[%clk 0:00:49.8]} 27...
Qf5 {[%clk 0:00:21.1]} 28. Qb5 {[%clk 0:00:47.1]} 28... Ne7 {[%clk 0:00:15]} 29.
Qxb7 {[%clk 0:00:41.7]} 29... h5 {[%clk 0:00:12.5]} 30. Qc7 {[%clk 0:00:40.1]}
30... h4 {[%clk 0:00:08.6]} 31. Rge3 {[%clk 0:00:39.9]} 31... g4 {[%clk
0:00:07.1]} 32. Qe5 {[%clk 0:00:33.7]} 32... gxh3+ {[%clk 0:00:06.7]} 33. Kf1
{[%clk 0:00:33.4]} 33... h2 {[%clk 0:00:06.2]} 34. Qxf5+ {[%clk 0:00:32.8]}
34... Nxf5 {[%clk 0:00:06.4]} 35. Rh3 {[%clk 0:00:33.4]} 35... h1=Q+ {[%clk
0:00:06.1]} 36. Rxh1 {[%clk 0:00:33]} 36... Ng3+ {[%clk 0:00:06.5]} 37. Kg2
{[%clk 0:00:32.6]} 37... Nxe2 {[%clk 0:00:06.5]} 38. Rb1 {[%clk 0:00:33.3]}
38... Nxc3 {[%clk 0:00:06.2]} 39. Rb7+ {[%clk 0:00:34]} 39... Kf6 {[%clk
0:00:06.4]} 40. Rxa7 {[%clk 0:00:33.9]} 40... Ne4 {[%clk 0:00:06.4]} 41. f3
{[%clk 0:00:34.1]} 41... Ng5 {[%clk 0:00:05.8]} 42. Ra8 {[%clk 0:00:34.7]} 42...
h3+ {[%clk 0:00:05.8]} 43. Kh2 {[%clk 0:00:33.3]} 43... Rxf3 {[%clk 0:00:06]}
44. a4 {[%clk 0:00:32.1]} 44... Kf5 {[%clk 0:00:05.7]} 45. a5 {[%clk 0:00:31.3]}
45... Rf2+ {[%clk 0:00:05.9]} 46. Kg3 {[%clk 0:00:31]} 46... Rg2+ {[%clk
0:00:05.8]} 47. Kh4 {[%clk 0:00:30.4]} 47... h2 {[%clk 0:00:06.1]} 48. Rf8+
{[%clk 0:00:30.1]} 48... Ke4 {[%clk 0:00:06.2]} 49. Rf1 {[%clk 0:00:30.8]} 49...
Rg1 {[%clk 0:00:05.8]} 0-1

[Event "*** Titled Tuesday Blitz"]
[Site "Chess.com"]
[Date "2020.03.03"]
[Round "4"]
[White "Slovak_fighter2000"]
[Black "DanielDardha2005"]
[Result "0-1"]
[WhiteElo "2376"]
[BlackElo "2683"]
[TimeControl "180+1"]
[EndTime "13:41:50 PST"]
[Termination "DanielDardha2005 won by resignation"]

1. d4 {[%clk 0:03:00.8]} 1... Nf6 {[%clk 0:02:54.9]} 2. Bf4 {[%clk 0:03:00.3]}
2... c5 {[%clk 0:02:46.1]} 3. e3 {[%clk 0:02:59.3]} 3... Qb6 {[%clk 0:02:45.7]}
4. Na3 {[%clk 0:02:57.6]} 4... d5 {[%clk 0:02:39.9]} 5. Nb5 {[%clk 0:02:51.2]}
5... Na6 {[%clk 0:02:38.8]} 6. c3 {[%clk 0:02:48.9]} 6... Bg4 {[%clk 0:02:35.2]}
7. Nf3 {[%clk 0:02:46.7]} 7... e6 {[%clk 0:02:32.7]} 8. a4 {[%clk 0:02:44.3]}
8... Be7 {[%clk 0:02:28.1]} 9. h3 {[%clk 0:02:44]} 9... Bh5 {[%clk 0:02:26.4]}
10. Be2 {[%clk 0:02:42.4]} 10... O-O {[%clk 0:02:25.1]} 11. O-O {[%clk
0:02:39.6]} 11... cxd4 {[%clk 0:02:20.4]} 12. exd4 {[%clk 0:02:38.8]} 12... Ne4
{[%clk 0:02:15]} 13. Ne5 {[%clk 0:02:37.7]} 13... Bxe2 {[%clk 0:02:14.3]} 14.
Qxe2 {[%clk 0:02:38.6]} 14... Qd8 {[%clk 0:02:12]} 15. Qg4 {[%clk 0:02:30.6]}
15... Nd6 {[%clk 0:01:41]} 16. Bh6 {[%clk 0:02:20.1]} 16... Nf5 {[%clk
0:01:37.1]} 17. Bd2 {[%clk 0:02:16.7]} 17... Nc7 {[%clk 0:01:34]} 18. Qf3 {[%clk
0:02:09.7]} 18... Nd6 {[%clk 0:01:27.5]} 19. Nxc7 {[%clk 0:02:08.6]} 19... Qxc7
{[%clk 0:01:28.4]} 20. Bf4 {[%clk 0:02:08.5]} 20... Qd8 {[%clk 0:01:20.9]} 21.
Nd3 {[%clk 0:02:03.9]} 21... Nc4 {[%clk 0:01:19.8]} 22. Qg3 {[%clk 0:01:56.8]}
22... Bd6 {[%clk 0:01:11.8]} 23. Bxd6 {[%clk 0:01:52.4]} 23... Qxd6 {[%clk
0:01:11.3]} 24. Qxd6 {[%clk 0:01:49.9]} 24... Nxd6 {[%clk 0:01:11.5]} 25. a5
{[%clk 0:01:43.6]} 25... Rfc8 {[%clk 0:01:10.8]} 26. Ra4 {[%clk 0:01:41]} 26...
Rc4 {[%clk 0:01:06.5]} 27. Rxc4 {[%clk 0:01:36.7]} 27... Nxc4 {[%clk 0:01:07.4]}
28. b4 {[%clk 0:01:34.8]} 28... b6 {[%clk 0:01:04.7]} 29. a6 {[%clk 0:01:09.9]}
29... Rc8 {[%clk 0:00:58.8]} 30. Rc1 {[%clk 0:01:03]} 30... f6 {[%clk
0:00:55.7]} 31. f4 {[%clk 0:01:02.5]} 31... Kf7 {[%clk 0:00:53.9]} 32. Kf2
{[%clk 0:01:02.2]} 32... h6 {[%clk 0:00:52]} 33. Ke2 {[%clk 0:01:02.4]} 33... g5
{[%clk 0:00:51.5]} 34. g3 {[%clk 0:00:57.5]} 34... Nd6 {[%clk 0:00:44.5]} 35. g4
{[%clk 0:00:52.8]} 35... Ne4 {[%clk 0:00:35.4]} 36. Kf3 {[%clk 0:00:40.2]} 36...
Rxc3 {[%clk 0:00:32.1]} 37. Rxc3 {[%clk 0:00:40.2]} 37... Nxc3 {[%clk 0:00:33]}
38. Ke3 {[%clk 0:00:38.4]} 38... Nb5 {[%clk 0:00:32.3]} 39. fxg5 {[%clk
0:00:34.6]} 39... hxg5 {[%clk 0:00:33.2]} 40. Nb2 {[%clk 0:00:29.6]} 40... Nc7
{[%clk 0:00:31.4]} 41. Na4 {[%clk 0:00:24.1]} 41... Nxa6 {[%clk 0:00:29.4]} 42.
b5 {[%clk 0:00:25]} 42... Nc7 {[%clk 0:00:29.4]} 43. Nc3 {[%clk 0:00:25.9]}
43... e5 {[%clk 0:00:29.8]} 44. Kd3 {[%clk 0:00:25.9]} 44... Ke6 {[%clk
0:00:28.2]} 45. Ke3 {[%clk 0:00:25.9]} 45... Ne8 {[%clk 0:00:28.5]} 46. Kd3
{[%clk 0:00:24.9]} 46... Nd6 {[%clk 0:00:28.3]} 47. Ke3 {[%clk 0:00:24.6]} 47...
Nc4+ {[%clk 0:00:27.6]} 48. Kd3 {[%clk 0:00:24.8]} 48... Nd6 {[%clk 0:00:26.6]}
49. Ke3 {[%clk 0:00:24.8]} 49... Ne8 {[%clk 0:00:24.6]} 50. Kd3 {[%clk
0:00:24.8]} 50... Kd6 {[%clk 0:00:25.1]} 51. Ke3 {[%clk 0:00:24.8]} 51... Nc7
{[%clk 0:00:25.4]} 52. Kd3 {[%clk 0:00:24.6]} 52... Ne6 {[%clk 0:00:25.8]} 53.
Ne2 {[%clk 0:00:17.9]} 53... Nxd4 {[%clk 0:00:25.6]} 54. Nxd4 {[%clk 0:00:17.8]}
54... exd4 {[%clk 0:00:26.5]} 55. Kxd4 {[%clk 0:00:17.7]} 55... Ke6 {[%clk
0:00:27.1]} 56. Ke3 {[%clk 0:00:16.3]} 56... Ke5 {[%clk 0:00:27.5]} 57. Kd3
{[%clk 0:00:16.9]} 57... d4 {[%clk 0:00:27.9]} 0-1

[Event "*** Titled Tuesday Blitz"]
[Site "Chess.com"]
[Date "2020.03.03"]
[Round "4"]
[White "hansen"]
[Black "tigra"]
[Result "1-0"]
[WhiteElo "2926"]
[BlackElo "2771"]
[TimeControl "180+1"]
[EndTime "13:41:52 PST"]
[Termination "hansen won on time"]

1. e4 {[%clk 0:02:58.3]} 1... c5 {[%clk 0:02:58.6]} 2. Nf3 {[%clk 0:02:52.1]}
2... e6 {[%clk 0:02:58.6]} 3. d4 {[%clk 0:02:45.8]} 3... cxd4 {[%clk 0:02:59.5]}
4. Nxd4 {[%clk 0:02:46.7]} 4... Nf6 {[%clk 0:02:57.8]} 5. Nc3 {[%clk 0:02:41.8]}
5... d6 {[%clk 0:02:58.4]} 6. g4 {[%clk 0:02:41.2]} 6... h6 {[%clk 0:02:56]} 7.
h4 {[%clk 0:02:39.7]} 7... Nc6 {[%clk 0:02:52.9]} 8. Rg1 {[%clk 0:02:35.9]} 8...
h5 {[%clk 0:02:51.5]} 9. gxh5 {[%clk 0:02:30.9]} 9... Nxh5 {[%clk 0:02:51.3]}
10. Bg5 {[%clk 0:02:30.7]} 10... Qb6 {[%clk 0:02:50.6]} 11. Nb3 {[%clk
0:02:27.5]} 11... a6 {[%clk 0:02:46.2]} 12. Qd2 {[%clk 0:02:23.3]} 12... Bd7
{[%clk 0:02:40.4]} 13. O-O-O {[%clk 0:02:22.9]} 13... Rc8 {[%clk 0:02:37.2]} 14.
Kb1 {[%clk 0:02:18.1]} 14... Ne5 {[%clk 0:02:27.3]} 15. Be3 {[%clk 0:02:15.3]}
15... Qc7 {[%clk 0:02:24.4]} 16. Be2 {[%clk 0:02:12.6]} 16... Nf6 {[%clk
0:02:10]} 17. f4 {[%clk 0:01:51.6]} 17... Nc4 {[%clk 0:02:04.2]} 18. Bxc4 {[%clk
0:01:51.6]} 18... Qxc4 {[%clk 0:02:05.1]} 19. e5 {[%clk 0:01:52.5]} 19... dxe5
{[%clk 0:01:49.1]} 20. fxe5 {[%clk 0:01:50.9]} 20... Nd5 {[%clk 0:01:49.7]} 21.
Nxd5 {[%clk 0:01:50]} 21... exd5 {[%clk 0:01:30.3]} 22. Bg5 {[%clk 0:01:44.2]}
22... Bc5 {[%clk 0:01:19.8]} 23. Nxc5 {[%clk 0:01:27.7]} 23... Rxc5 {[%clk
0:01:18.6]} 24. Rgf1 {[%clk 0:01:27.5]} 24... Be6 {[%clk 0:01:05.3]} 25. Rf4
{[%clk 0:01:21]} 25... Qb5 {[%clk 0:01:03.9]} 26. b3 {[%clk 0:01:16.4]} 26...
Qc6 {[%clk 0:01:01.5]} 27. Rg1 {[%clk 0:01:09.4]} 27... a5 {[%clk 0:00:54.9]}
28. Rf2 {[%clk 0:01:04.9]} 28... a4 {[%clk 0:00:45.4]} 29. Be3 {[%clk
0:00:47.2]} 29... Rc3 {[%clk 0:00:41.7]} 30. Rf4 {[%clk 0:00:36.4]} 30... axb3
{[%clk 0:00:28.3]} 31. axb3 {[%clk 0:00:35.8]} 31... Kd7 {[%clk 0:00:28.8]} 32.
Kb2 {[%clk 0:00:21.5]} 32... Rc8 {[%clk 0:00:27]} 33. Rc1 {[%clk 0:00:21.5]}
33... Ke8 {[%clk 0:00:25.8]} 34. Rb4 {[%clk 0:00:20.8]} 34... Qc7 {[%clk
0:00:24]} 35. Bd4 {[%clk 0:00:19.9]} 35... Rh3 {[%clk 0:00:23.9]} 36. Qg5 {[%clk
0:00:14.1]} 36... Qe7 {[%clk 0:00:22.6]} 37. Qxe7+ {[%clk 0:00:13.5]} 37... Kxe7
{[%clk 0:00:23.5]} 38. Rxb7+ {[%clk 0:00:13.8]} 38... Ke8 {[%clk 0:00:23.7]} 39.
b4 {[%clk 0:00:12.7]} 39... Rxh4 {[%clk 0:00:23.5]} 40. c3 {[%clk 0:00:13]}
40... Rh2+ {[%clk 0:00:19.2]} 41. Kb3 {[%clk 0:00:13.1]} 41... g5 {[%clk
0:00:18.5]} 42. b5 {[%clk 0:00:12.9]} 42... g4 {[%clk 0:00:19]} 43. Kb4 {[%clk
0:00:11.7]} 43... g3 {[%clk 0:00:19.2]} 44. Rg1 {[%clk 0:00:11.9]} 44... Rc4+
{[%clk 0:00:15.3]} 45. Ka5 {[%clk 0:00:11.4]} 45... Ra2+ {[%clk 0:00:14.6]} 46.
Kb6 {[%clk 0:00:11.4]} 46... g2 {[%clk 0:00:15.5]} 47. Rb8+ {[%clk 0:00:11]}
47... Kd7 {[%clk 0:00:15.4]} 48. Rg8 {[%clk 0:00:10.4]} 48... Rc8 {[%clk
0:00:14.7]} 49. R1xg2 {[%clk 0:00:05.7]} 49... Rxg8 {[%clk 0:00:08.4]} 50. Rxg8
{[%clk 0:00:05.4]} 50... Rb2 {[%clk 0:00:08.6]} 51. Rb8 {[%clk 0:00:04.9]} 51...
Rb3 {[%clk 0:00:08.9]} 52. Rb7+ {[%clk 0:00:03.3]} 52... Kc8 {[%clk 0:00:09.8]}
53. Rc7+ {[%clk 0:00:03.6]} 53... Kb8 {[%clk 0:00:09.7]} 54. Re7 {[%clk
0:00:03.7]} 54... Kc8 {[%clk 0:00:09.5]} 55. Kc6 {[%clk 0:00:03.9]} 55... Kd8
{[%clk 0:00:08]} 56. Ra7 {[%clk 0:00:03.4]} 56... Bc8 {[%clk 0:00:03]} 57. Ra8
{[%clk 0:00:01.7]} 57... f6 {[%clk 0:00:01.4]} 58. exf6 {[%clk 0:00:01.7]} 1-0

[Event "*** Titled Tuesday Blitz"]
[Site "Chess.com"]
[Date "2020.03.03"]
[Round "4"]
[White "AvitalBor"]
[Black "TST2014"]
[Result "1-0"]
[WhiteElo "2787"]
[BlackElo "2589"]
[TimeControl "180+1"]
[EndTime "13:42:01 PST"]
[Termination "AvitalBor won on time"]

1. e4 {[%clk 0:03:00.9]} 1... c5 {[%clk 0:02:58.8]} 2. c3 {[%clk 0:02:58.2]}
2... Nf6 {[%clk 0:02:58]} 3. e5 {[%clk 0:02:56.6]} 3... Nd5 {[%clk 0:02:58.2]}
4. d4 {[%clk 0:02:57.5]} 4... cxd4 {[%clk 0:02:57.9]} 5. cxd4 {[%clk 0:02:58.4]}
5... Nc6 {[%clk 0:02:57.9]} 6. Nf3 {[%clk 0:02:59.3]} 6... d6 {[%clk 0:02:58]}
7. Bc4 {[%clk 0:02:59.8]} 7... Nb6 {[%clk 0:02:57.9]} 8. Bb5 {[%clk 0:02:58.9]}
8... dxe5 {[%clk 0:02:57.6]} 9. Nxe5 {[%clk 0:02:59.8]} 9... Bd7 {[%clk
0:02:57.6]} 10. Nxd7 {[%clk 0:02:59.6]} 10... Qxd7 {[%clk 0:02:56.8]} 11. Nc3
{[%clk 0:03:00.3]} 11... e6 {[%clk 0:02:53.7]} 12. O-O {[%clk 0:03:00.8]} 12...
Be7 {[%clk 0:02:48.2]} 13. Qg4 {[%clk 0:02:59.5]} 13... g6 {[%clk 0:02:41.9]}
14. Rd1 {[%clk 0:02:55.4]} 14... O-O {[%clk 0:02:37]} 15. d5 {[%clk 0:02:55.2]}
15... exd5 {[%clk 0:02:33.2]} 16. Qxd7 {[%clk 0:02:54.4]} 16... Nxd7 {[%clk
0:02:33.6]} 17. Nxd5 {[%clk 0:02:54.6]} 17... Nde5 {[%clk 0:02:13.1]} 18. Bf4
{[%clk 0:02:11.3]} 18... Bd8 {[%clk 0:01:30.3]} 19. Rac1 {[%clk 0:02:00.1]}
19... a6 {[%clk 0:01:29.7]} 20. Bf1 {[%clk 0:01:57.8]} 20... f6 {[%clk
0:01:23.2]} 21. Be3 {[%clk 0:01:54.5]} 21... Rf7 {[%clk 0:01:21.6]} 22. f4
{[%clk 0:01:52.1]} 22... Ng4 {[%clk 0:01:21.2]} 23. Bc5 {[%clk 0:01:51]} 23...
Kg7 {[%clk 0:01:17]} 24. h3 {[%clk 0:01:49.7]} 24... Nh6 {[%clk 0:01:15.9]} 25.
g4 {[%clk 0:01:46.6]} 25... Rc8 {[%clk 0:01:00.6]} 26. Bf2 {[%clk 0:01:34.1]}
26... Ne7 {[%clk 0:00:54.4]} 27. Rxc8 {[%clk 0:01:19]} 27... Nxc8 {[%clk
0:00:54]} 28. Bd4 {[%clk 0:01:17.1]} 28... Ng8 {[%clk 0:00:51.1]} 29. Bg2 {[%clk
0:01:12]} 29... Rd7 {[%clk 0:00:46.6]} 30. Kf1 {[%clk 0:01:11.2]} 30... Kf7
{[%clk 0:00:46.3]} 31. a4 {[%clk 0:01:09.9]} 31... Nce7 {[%clk 0:00:45.1]} 32.
Bc3 {[%clk 0:01:05.8]} 32... Nc6 {[%clk 0:00:35.7]} 33. b4 {[%clk 0:01:00]}
33... Bc7 {[%clk 0:00:27.9]} 34. Ke2 {[%clk 0:00:52]} 34... Bd8 {[%clk
0:00:22.9]} 35. b5 {[%clk 0:00:51.2]} 35... axb5 {[%clk 0:00:22.4]} 36. axb5
{[%clk 0:00:52.1]} 36... Na5 {[%clk 0:00:22.4]} 37. Ne3 {[%clk 0:00:28.8]} 37...
Rxd1 {[%clk 0:00:21.3]} 38. Kxd1 {[%clk 0:00:29.7]} 38... b6 {[%clk 0:00:20.1]}
39. Kc2 {[%clk 0:00:29.3]} 39... Ne7 {[%clk 0:00:17.7]} 40. Nd5 {[%clk
0:00:29.2]} 40... Nxd5 {[%clk 0:00:16.1]} 41. Bxd5+ {[%clk 0:00:29.8]} 41... Ke7
{[%clk 0:00:16.6]} 42. Kd3 {[%clk 0:00:25.4]} 42... Bc7 {[%clk 0:00:16.6]} 43.
Ke4 {[%clk 0:00:23.2]} 43... Bd6 {[%clk 0:00:10.6]} 44. Bg8 {[%clk 0:00:21.3]}
44... h6 {[%clk 0:00:10.5]} 45. h4 {[%clk 0:00:20.6]} 45... Bc7 {[%clk
0:00:08.3]} 46. Bd5 {[%clk 0:00:19.1]} 46... Bd6 {[%clk 0:00:07.9]} 47. h5
{[%clk 0:00:19.1]} 47... gxh5 {[%clk 0:00:04.6]} 48. gxh5 {[%clk 0:00:19.7]}
48... Bc7 {[%clk 0:00:04]} 49. Ba1 {[%clk 0:00:18.2]} 49... Bd6 {[%clk
0:00:04.1]} 50. Kf5 {[%clk 0:00:16.8]} 50... Bc7 {[%clk 0:00:04.4]} 51. Bxf6+
{[%clk 0:00:16.8]} 51... Kd6 {[%clk 0:00:03.8]} 52. Ba2 {[%clk 0:00:16.5]} 52...
Kc5 {[%clk 0:00:03.6]} 53. Bg7 {[%clk 0:00:16.6]} 53... Kxb5 {[%clk 0:00:03.9]}
54. Bxh6 {[%clk 0:00:17.2]} 54... Nc4 {[%clk 0:00:03.9]} 55. Bg7 {[%clk
0:00:16.9]} 55... Ne3+ {[%clk 0:00:04]} 56. Ke4 {[%clk 0:00:15.6]} 56... Ng2
{[%clk 0:00:04]} 57. h6 {[%clk 0:00:15.6]} 57... Nxf4 {[%clk 0:00:04.3]} 58. h7
{[%clk 0:00:15]} 58... Ng6 {[%clk 0:00:04.6]} 59. Bf7 {[%clk 0:00:14.1]} 1-0